{"text_format":"1","workbook":"xlsx","n_sheets":5,"sheets":["pierwsza strona","druga strona","trzecia strona","Arkusz1","start"],"not_rendered":{"charts":0,"images":0,"macros":1,"external_links":1,"defined_names":53,"comments":0,"pivot_tables":0},"unopened":[],"bounds":{"document_bytes":16777216,"sheet_cells":100000,"rows_first":2000,"rows_last":500,"rows_between":2000,"halvings":0,"cell_chars":16384,"cell_head_chars":4096},"cells_cut":0,"cells_raw":0,"read":"whole","date_system":"1900"}

{"sheet":"pierwsza strona","index":0,"n_rows":35,"n_cols":19,"rows_kept":35,"cut":false,"hidden":true,"merged":[[33,0,33,19],[34,0,34,19],[2,9,2,19],[2,0,2,8],[3,0,3,8],[3,9,3,19],[31,0,31,14],[22,18,22,19],[29,0,29,7],[27,0,27,7],[28,0,28,7],[25,0,25,7],[25,10,25,12],[28,10,28,12],[32,0,32,19],[13,0,13,19],[26,15,26,17],[25,18,25,19],[18,15,18,17],[19,0,19,7],[19,10,19,12],[19,15,19,17],[19,13,19,14],[18,10,18,12],[18,13,18,14],[19,18,19,19],[25,13,25,14],[20,18,20,19],[20,13,20,14],[23,10,23,12],[25,15,25,17],[1,0,1,10],[24,13,24,14],[20,15,20,17],[22,13,22,14],[23,13,23,14],[23,15,23,17],[16,14,16,16],[16,0,16,9],[11,0,11,19],[1,11,1,12],[1,16,1,17],[8,0,8,19],[18,18,18,19],[14,0,14,19],[20,10,20,12],[21,10,21,12],[6,0,6,19],[22,10,22,12],[22,15,22,17],[22,0,22,7],[21,13,21,14],[16,10,16,12],[21,18,21,19],[15,0,15,19],[12,0,12,19],[9,0,9,19],[7,0,7,19],[17,0,17,19],[20,0,20,7],[21,0,21,7],[31,15,31,19],[18,0,18,7],[23,18,23,19],[24,15,24,17],[24,18,24,19],[21,15,21,17],[26,13,26,14],[30,18,30,19],[27,13,27,14],[30,15,30,17],[30,13,30,14],[27,15,27,17],[28,18,28,19],[27,18,27,19],[30,10,30,12],[26,18,26,19],[0,12,0,19],[28,13,28,14],[28,15,28,17],[27,10,27,12],[30,0,30,7],[29,10,29,12],[29,15,29,17],[29,13,29,14],[23,0,23,7],[24,0,24,7],[24,10,24,12],[26,10,26,12],[26,0,26,7],[4,0,4,19],[10,0,10,19],[5,0,5,19]]}
[null,null,null,null,null,null,null,null,null,null,null,null,"Załącznik do komunikatu Ministra Rozwoju i Finansów \nz dnia 7 listopada 2017 r. (poz. 220)"]
["Informacja o realizacji zadań z zakresu audytu wewnętrznego w roku1)         "]
["Nazwa jednostki sektora finansów publicznych"]
["Imię i nazwisko kierownika jednostki"]
["1. Słowniczek"]
["Ilekroć w Informacji jest mowa o:"]
["1.1. ustawie - rozumie się przez to ustawę z dnia 27 sierpnia 2009 r. o finansach publicznych (Dz. U. z 2016 r. poz. 1870, z późn. zm.)"]
["1.2. rozporządzeniu - rozumie się przez to rozporządzenie Ministra Finansów z dnia 4 września 2015 r. r. w sprawie audytu wewnętrznego oraz informacji o pracy i wynikach tego audytu (Dz. U. poz. 1480, z późn. zm.)"]
["1.3. jednostce - rozumie się przez to jednostkę sektora finansów publicznych"]
["1.4. audycie - rozumie się przez to audyt wewnętrzny, o którym mowa w ustawie"]
["1.5. kaw - rozumie się przez to komórkę audytu wewnętrznego, o której mowa w ustawie"]
["1.6. usługodawcy - rozumie się przez to osobę fizyczną prowadzącą audyt w jednostce lub osoby zatrudnione przez usługodawcę do prowadzenia audytu w jednostce"]
["1.7. audycie zleconym - rozumie się przez to audyt wewnętrzny zlecony, o którym mowa w ustawie "]
["1.8. roku sprawozdawczym - rozumie się przez to rok, którego dotyczy Informacja"]
["1.9. standardach audytu wewnętrznego - rozumie się przez to standardy audytu wewnętrznego określone  w komunikacie Ministra Rozwoju i Finansów z dnia 12 grudnia 2016 r. (Dz. Urz. Min. Roz. i Fin. poz. 28)"]
["2. Forma prowadzenia audytu"]
["Audyt w jednostce prowadzi (należy zaznaczyć właściwą odpowiedź znakiem „X”)",null,null,null,null,null,null,null,null,null,"audytor wewnętrzny zatrudniony w jednostce",null,null,null,"usługodawca niezatrudniony \nw jednostce"]
["3. Analiza zasobów osobowych"]
[null,null,null,null,null,null,null,null,"Suma osobodni ujętych w planie audytu opracowanym na koniec roku poprzedzającego rok sprawozdawczy a w przypadku planu audytu sporządzonego na podstawie § 11 rozporządzenia, na dzień sporządzenia planu audytu albo uzgodnienia zadań z kierownikiem jednostki\n(audytorów wewnętrznych i osób na pozostałych stanowiskach2))","% udział","Suma osobodni ujętych w planie audytu uwzględniającym zmiany wprowadzone na podstawie § 10 rozporządzenia\n(audytorów wewnętrznych i osób na pozostałych stanowiskach)",null,null,"% udział",null,"Suma osobodni  wykorzystanych w roku sprawozdawczym\n(audytorów wewnętrznych \ni osób na pozostałych stanowiskach)",null,null,"% udział"]
[1,null,null,null,null,null,null,null,2,3,4,null,null,5,null,6,null,null,7]
["3.1. Planowanie i sprawozdawczość (tj. przygotowanie: rocznego planu, uzgodnienie z kierownikiem jednostki zakresu realizacji planu audytu, opracowanie sprawozdania z wykonania planu, informacji o realizacji zadań z zakresu audytu)",null,null,null,null,null,null,null,null,{"$f":"IF(AND(I21<>0,I21<>\"x\"),I21/$I$31,0)","v":0},null,null,null,{"$f":"IF(AND(K21<>0,K21<>\"x\"),K21/$K$31,0)","v":0},null,null,null,null,{"$f":"IF(AND(P21<>0,P21<>\"x\"),P21/$P$31,0)","v":0}]
["3.2. Planowanie, wykonanie i dokumentowanie zadań zapewniających \n(tj. wszystkie czynności związane z przeprowadzaniem\ni dokumentowaniem zadań zapewniających)",null,null,null,null,null,null,null,null,{"$f":"IF(AND(I22<>0,I22<>\"x\"),I22/$I$31,0)","v":0},null,null,null,0,null,null,null,null,{"$f":"IF(AND(P22<>0,P22<>\"x\"),P22/$P$31,0)","v":0}]
["3.3. Planowanie, wykonanie i dokumentowanie czynności doradczych\n(tj. wszystkie czynności związane z przeprowadzaniem\ni dokumentowaniem czynności doradczych, w tym: uczestnictwo \nw zespołach, posiedzeniach kierownictwa jednostki, opiniowanie dokumentów, prowadzenie szkoleń itp.)",null,null,null,null,null,null,null,null,0,null,null,null,0,null,null,null,null,0]
["3.4. Monitorowanie wykonania zaleceń oraz przeprowadzanie czynności sprawdzających (tj. monitorowanie, o którym mowa w § 20 rozporządzenia, oraz czynności sprawdzające, o których mowa w § 21 rozporządzenia)",null,null,null,null,null,null,null,null,0,null,null,null,0,null,null,null,null,0]
["3.5. Czynności związane z obsługą komitetu audytu (tj. czynności,\no których mowa w art. 291 ustawy)",null,null,null,null,null,null,null,null,0,null,null,null,{"$f":"IF(AND(K25<>0,K25<>\"x\"),K25/$K$31,0)","v":0},null,null,null,null,0]
["3.6. Szkolenia i rozwój zawodowy (w tym samodoskonalenie zawodowe)3)",null,null,null,null,null,null,null,null,0,null,null,null,0,null,null,null,null,0]
["3.7. Urlopy i inne nieobecności3)",null,null,null,null,null,null,null,null,0,null,null,null,0,null,null,null,null,0]
["3.8. Inne czynności niż wymienione w pkt 3.1. - 3.7. (np. aktualizacja księgi procedur)",null,null,null,null,null,null,null,null,0,null,null,null,0,null,null,null,null,0]
["3.9. Rezerwa3)",null,null,null,null,null,null,null,null,0,null,null,null,0]
["3.9.1. w tym rezerwa na audyt zlecony",null,null,null,null,null,null,null,null,0,null,null,null,0]
["3.10. Suma",null,null,null,null,null,null,null,{"$f":"SUM(I21:I29)","v":0},{"$f":"SUM(J21:J29)","v":0},{"$f":"SUM(K21:M29)","v":0},null,null,{"$f":"SUM(N21:O29)","v":0},null,{"$f":"SUM(P21:R28)","v":0},null,null,{"$f":"SUM(S21:T28)","v":0}]
["3.11. Przyczyny powstania różnicy pomiędzy sumą osobodni wg planu audytu a sumą osobodni wykorzystanych [należy  wypełnić w przypadku, gdy różnica w wierszu 3.10 pomiędzy sumami: osobodni zaplanowanych (kol. 2) i wykorzystanych (kol. 6) jest większa niż 5%, w przeciwnym wypadku należy wpisać „nie dotyczy”]"]
["1) Dalej jako: Informacja."]
["2) W przypadku kaw dotyczy osób niezatrudnionych na stanowisku audytora wewnętrznego, w przypadku usługodawcy dotyczy osób niebędących audytorem wewnętrznym."]
["3) Jeżeli nie jest możliwe podanie danych przez usługodawcę, należy wpisać \"X\"."]

{"sheet":"druga strona","index":1,"n_rows":44,"n_cols":17,"rows_kept":44,"cut":false,"hidden":true,"merged":[[33,1,33,2],[40,1,40,2],[40,3,40,4],[34,3,34,4],[37,1,37,2],[37,3,37,4],[36,3,36,4],[39,0,39,4],[36,1,36,2],[35,0,35,4],[34,1,34,2],[3,0,3,4],[14,0,14,4],[43,1,43,2],[41,3,41,4],[42,3,42,4],[43,3,43,4],[41,1,41,2],[25,0,25,4],[18,0,18,4],[22,0,22,4],[38,1,38,2],[38,3,38,4],[31,3,31,4],[32,0,32,4],[42,1,42,2],[33,3,33,4],[0,0,0,4],[1,0,1,2],[2,0,2,2],[1,3,1,4],[2,3,2,4],[31,1,31,2],[7,3,7,4],[8,3,8,4],[9,3,9,4],[7,1,7,2],[8,1,8,2],[9,1,9,2],[10,1,10,4],[5,0,5,4],[11,0,11,4],[4,0,4,4],[30,0,30,4],[6,1,6,2],[6,3,6,4],[13,0,13,4]]}
["4. Obszary działalności"]
["4.1. Liczba wszystkich obszarów działalności zidentyfikowanych na etapie przygotowania planu audytu "]
["4.2. Liczba  obszarów działalności, w których zakończono zadania zapewniające w roku sprawozdawczym"]
["4.3. Tematy zadań zapewniających zakończonych w roku sprawozdawczym (należy podać tematy wszystkich zadań zapewniających zakończonych, wymienionych w pkt 6):"]
[]
["5. Planowanie audytu"]
[null,"Plan audytu opracowany na koniec roku poprzedzającego rok sprawozdawczy albo planu audytu sporządzony na podstawie § 11 rozporządzenia",null,"Plan audytu uwzględniający zmiany wprowadzone na podstawie § 10 rozporządzenia"]
["5.1. Liczba zadań zapewniających zaplanowanych jako audyt zlecony"]
["5.2. Liczba zaplanowanych zadań zapewniających kontynuowanych z lat poprzednich"]
["5.3 Liczba zaplanowanych zadań zapewniających z wyłączeniem zadań wykazanych w pkt 5.1. i 5.2."]
["5.4. Zakres zmian planu audytu (należy opisać zakres zmian planu audytu w odniesieniu do zadań zapewniających; w przypadku gdy zmiana planu nie wystąpiła należy wpisać 0)"]
["6. Realizacja zadań zapewniających\n(w przypadku planu audytu uwzględniającego zmiany wprowadzone na podstawie §10 rozporządzenia należy rozliczyć liczbę zadań z pkt 5 kol. 3)"]
[null,"Liczba zadań ","Suma osobodni wykorzystanych w roku sprawozdawczym na zadania zapewniające (audytorów wewnętrznych i osób na pozostałych stanowiskach)","Liczba wydanych zaleceń zawartych \nw sprawozdaniach","Liczba zaleceń uznanych za zasadne przez kierownika komórki audytowanej lub kierownika jednostki"]
["6.1. Zadania zapewniające z wyłączeniem audytu zleconego"]
["6.1.1. Zadania planowane (zadania, o których mowa w pkt 5.3.)"]
["a) zakończone"]
["b) rozpoczęte i niezakończone"]
["c) niezrealizowane"]
["6.1.2. Zadania kontynuowane z lat poprzednich (zadania, o których mowa w pkt 5.2.)"]
["a) zakończone"]
["b) niezakończone"]
["c) niezrealizowane"]
["6.1.3. Zadania, które nie zostały ujęte w planie audytu na rok sprawozdawczy"]
["a) zakończone"]
["b) rozpoczęte i niezakończone"]
["6.2. Audyt zlecony"]
["6.2.1. Zadania zakończone"]
["6.2.2. Zadania rozpoczęte i niezakończone"]
["6.2.3. Zadania niezrealizowane"]
["6.3. Suma zadań zapewniających",{"$f":"SUM(B16:B18,B20:B22,B24:B25,B27:B29)","v":0},{"$f":"SUM(C16:C17,C20:C21,C24:C25,C27:C29)","v":0},{"$f":"SUM(D16,D20,D24,D27)","v":0},{"$f":"SUM(E16,E20,E24,E27)","v":0}]
["7. Realizacja czynności doradczych",null,null,null,null,null,null,null,null,null,null,null,null,null,null,null,{"$f":"'pierwsza strona'!P22","v":0}]
[null,"Liczba czynności doradczych",null,"Suma osobodni wykorzystanych na czynności doradcze (audytorów wewnętrznych i osób na pozostałych stanowiskach)"]
["7.1. Czynności doradcze z wyłączeniem audytu zleconego"]
["7.1.1. Czynności zakończone"]
["7.1.2. Czynności rozpoczęte i niezakończone"]
["7.2. Audyt zlecony"]
["7.2.1. Czynności zakończone"]
["7.2.2. Czynności rozpoczęte i niezakończone"]
["7.3. Suma czynności doradczych",{"$f":"SUM(B34:C35,B37:C38)","v":0},null,{"$f":"SUM(D34:E35,D37:E38)","v":0}]
["8. Realizacja czynności sprawdzających"]
[null,"Liczba czynności sprawdzających",null,"Suma osobodni wykorzystanych na  czynności sprawdzające (audytorów wewnętrznych i osób na pozostałych stanowiskach)",null,null,null,null,null,null,null,null,null,null,null,null,{"$f":"'pierwsza strona'!P23","v":0}]
["8.1. Zakończone"]
["8.2. Rozpoczęte i niezakończone"]
["8.3. Suma czynności sprawdzających",{"$f":"SUM(B42:C43)","v":0},null,{"$f":"SUM(D42:E43)","v":0},null,null,null,null,null,null,null,null,null,null,null,null,{"$f":"'pierwsza strona'!P24","v":0}]

{"sheet":"trzecia strona","index":2,"n_rows":34,"n_cols":4,"rows_kept":34,"cut":false,"hidden":true,"merged":[[31,0,31,1],[29,0,29,1],[31,2,31,3],[29,2,29,3],[28,0,28,1],[30,2,30,3],[28,2,28,3],[30,0,30,1],[21,0,21,1],[27,0,27,1],[26,0,26,3],[27,2,27,3],[24,0,24,1],[24,2,24,3],[34,0,34,3],[0,0,0,3],[7,0,7,1],[6,0,6,1],[12,0,12,3],[9,0,9,1],[8,0,8,1],[13,0,13,2],[10,0,10,1],[15,0,15,3],[16,2,16,3],[14,0,14,2],[5,0,5,1],[16,0,16,1],[11,0,11,1],[17,0,17,3],[4,0,4,3],[32,0,32,3],[33,0,33,3],[18,0,18,1],[25,2,25,3],[22,0,22,1],[19,0,19,1],[23,0,23,1],[18,2,18,3],[19,2,19,3],[23,2,23,3],[20,2,20,3],[25,0,25,1],[21,2,21,3],[22,2,22,3],[20,0,20,1]]}
["9. Skutki finansowe wynikające z zadań audytowych, których wystąpienie potwierdzono w roku sprawozdawczym"]
["L.p.","Cel zadania audytowego, w wyniku którego zidentyfikowano skutki finansowe (oszczędności lub dodatkowe dochody/przychody), niezależnie od roku zakończenia zadania audytowego","Wartość zidentyfikowanych skutków finansowych w roku sprawozdawczym (kwota w zł)","Rok, w którym zakończono zadanie audytowe"]
[1]
["Kwota",null,{"$f":"SUM(C3:C3)","v":0}]
["10. Zatrudnienie w kaw"]
[null,null,"Stan na 1 stycznia roku sprawozdawczego","Stan na 31 grudnia roku sprawozdawczego"]
["10.1. Audytor wewnętrzny (w tym kierownik kaw posiadający uprawienia audytora wewnętrznego)"]
["10.1.1. Liczba osób zatrudnionych na stanowisku audytora wewnętrznego"]
["10.1.2. Liczba obsadzonych etatów na stanowiskach audytorów wewnętrznych"]
["10.2. Pozostałe stanowiska w kaw (dotyczy osób niezatrudnionych na stanowisku audytora wewnętrznego) "]
["10.2.1. Liczba osób zatrudnionych "]
["10.2.2. Liczba obsadzonych etatów "]
["11. Program zapewnienia i poprawy jakości"]
["11.1. Czy w roku sprawozdawczym została przeprowadzona samoocena? (należy wskazać odpowiednio TAK albo NIE)"]
["11.2. Rok, w którym została przeprowadzona ostatnia ocena zewnętrzna w rozumieniu standardu 1312 (w przypadku gdy nie przeprowadzano takiej oceny należy wpisać 0)"]
["12. Podstawa prawna prowadzenia audytu "]
["12.1. Podstawa prawna prowadzenia audytu "]
["13. Informacje o jednostce na dzień 31 grudnia roku sprawozdawczego"]
["13.1. Oficjalny adres strony internetowej jednostki"]
["13.2. Oficjalny adres poczty elektronicznej jednostki"]
["13.3.  Adres skrytki na ePUAP"]
["13.4. Liczba osób zatrudnionych w jednostce (suma liczby osób zatrudnionych na podstawie stosunku służbowego i liczby osób pracujących w jednostce, \no których mowa w  Dziale 4 poz.0.1. Ogółem \"Sprawozdania o pracujących, wynagrodzeniach i czasie pracy - druk GUS Z-06\")"]
["13.5. Kwota dochodów albo przychodów w planie finansowym jednostki w zł"]
["13.6. Kwota wydatków albo kosztów w planie finansowym jednostki w zł"]
["13.7. Podmiot sektora finansów publicznych (należy wskazać odpowiednio:  \n- państwowa jednostka budżetowa,\n- agencja wykonawcza, \n- instytucja gospodarki budżetowej, \n- NFZ, KRUS, ZUS lub inna jednostka obsługująca państwowy fundusz celowy, albo \n- samodzielny publiczny zakład opieki zdrowotnej nie utworzony przez jednostkę samorządu terytorialnego, \n- uczelnia publiczna, \n- Polska Akademia Nauk lub tworzone przez nią jednostki organizacyjne, \n- państwowa instytucja kultury, \n- państwowa  osoba prawna)"]
["13.8. Dział administracji rządowej (jeżeli jednostka jest jednostką w dziale należy wskazać nazwę działu, w przypadku gdy nie jest jednostką w dziale należy wpisać 0)"]
["14. Dane kaw/usługodawcy"]
["14.1. Nazwa kaw (w przypadku funduszy celowych należy podać nazwę kaw jednostki obsługującej fundusz) lub imię i nazwisko/nazwę usługodawcy"]
["14.2. Imię i nazwisko osoby do kontaktu (kierownik kaw/usługodawca)"]
["14.3. Służbowy adres poczty elektronicznej"]
["14.4. Nr telefonu służbowego stacjonarnego"]
["14.5. Nr telefonu służbowego komórkowego"]
["15. Uwagi"]
["W polu poniżej można przedstawić wyjaśnienia dotyczące danych zawartych w Informacji"]

{"sheet":"Arkusz1","index":3,"n_rows":122,"n_cols":2,"rows_kept":122,"cut":false,"hidden":true,"merged":[]}
[]
["tak_nie"]
["TAK"]
["NIE"]
[]
[]
["wojewodztwa"]
["Województwo dolnośląskie"]
["Województwo kujawsko-pomorskie"]
["Województwo lubelskie"]
["Województwo lubuskie"]
["Województwo łódzkie"]
["Województwo małopolskie"]
["Województwo mazowieckie"]
["Województwo opolskie"]
["Województwo podkarpackie"]
["Województwo podlaskie"]
["Województwo pomorskie"]
["Województwo śląskie"]
["Województwo świętokrzyskie"]
["Województwo warmińsko-mazurskie"]
["Województwo wielkopolskie"]
["Województwo zachodniopomorskie"]
[]
[]
["podstawa"]
["art. 274 ust. 1 (Jednostka wymieniona imiennie lub rodzajowo, w której audyt wewnętrzny prowadzi się na mocy ustawy)"]
["art. 274 ust. 2 (Jednostka, w której został przekroczony próg kwotowy)"]
["art. 274 ust. 4 (Jednostka, której kierownik podjął decyzję o prowadzeniu audytu)"]
["art. 274 ust. 5 (Jednostka w dziale wskazana przez ministra jako zobowiązana do prowadzania audytu wewnętrznego)"]
["art. 274 ust. 6 (Jednostka wskazana przez Prezesa Rady Ministrów jako zobowiązana do prowadzenia audytu wewnętrznego)"]
[]
[]
["Jednostka sektora finansów publicznych, której kierownik podjął decyzję o prowadzeniu audytu"]
["Jednostka w dziale wskazana przez ministra jako zobowiązana do prowadzania audytu wewnętrznego"]
["Jednostka wskazana przez Prezesa Rady Ministrów jako zobowiązana do prowadzenia audytu wewnętrznego"]
["Jednostka wskazana w art. 273 ust. 1"]
["Państwowa jednostka budżetowa"]
["Jednostka samorządu terytorialnego"]
["Uczelnia publiczna"]
["Samodzielny publiczny zakład opieki zdrowotnej, który nie został utworzony przez jednostkę samorządu terytorialnego"]
["Agencja wykonawcza"]
["Państwowy fundusz celowy"]
[]
[]
[]
[]
[]
["podmiot"]
["państwowa jednostka budżetowa"]
["agencja wykonawcza"]
["instytucja gospodarki budżetowej"]
["NFZ, KRUS, ZUS lub inna jednostka obsługująca państwowy fundusz celowy"]
["samodzielny publiczny zakład opieki zdrowotnej nie utworzony przez jednostkę samorządu terytorialnego"]
["uczelnia publiczna"]
["Polska Akademia Nauk lub tworzone przez nią jednostki organizacyjne"]
["państwowa instytucja kultury"]
["państwowa osoba prawna"]
[]
[]
[]
[]
["przyczyny"]
["nie dotyczy","nie zmieniać położenia dwóch pierwszych komunikatów"]
["zmiana organizacyjna w jednostce"]
["niezaplanowane inne nieobecności"]
["fluktuacja kadr w kaw"]
["inne"]
[]
[]
[]
["komunikaty"]
["Wartość niezgodna z wierszem 2.2. Wartości te muszą być takie same. \nPopraw dane w poniższym formularzu i zatwierdź OK lub wybierz Anuluj i wprowadź poprawne bezpośrednio w arkuszu.","komunikat wyświetlany przy  w-ku dla pkt. 22 str1"]
["Wartość niezgodna z wierszem 2.4. Wartości p-tu 2.4 nie może być mniejsza niż wartość w p-cie 7.3. \nPopraw dane w poniższym formularzu i zatwierdź OK lub wybierz Anuluj i wprowadź poprawne bezpośrednio w arkuszu.","komunikat wyświetlany przy  w-ku dla pkt. 23 str1"]
["Wartość niezgodna z wierszem 2.3. Wartości te muszą być takie same. \nPopraw dane w poniższym formularzu i zatwierdź OK lub wybierz Anuluj i wprowadź poprawne bezpośrednio w arkuszu."]
[]
[]
["działy"]
[0]
["administracja publiczna"]
["budownictwo, lokalne planowanie i zagospodarowanie przestrzenne oraz mieszkalnictwo"]
["budżet"]
["energia"]
["finanse publiczne"]
["gospodarka"]
["gospodarka morska"]
["gospodarka wodna"]
["gospodarka złożami kopalin"]
["instytucje finansowe"]
["informatyzacja"]
["członkostwo Rzeczypospolitej Polskiej w Unii Europejskiej"]
["kultura i ochrona dziedzictwa narodowego"]
["kultura fizyczna"]
["łączność"]
["nauka"]
["obrona narodowa"]
["oświata i wychowanie"]
["praca"]
["rolnictwo"]
["rozwój wsi"]
["rozwój regionalny"]
["rynki rolne"]
["rybołówstwo"]
["sprawiedliwość"]
["szkolnictwo wyższe"]
["transport"]
["turystyka"]
["środowisko"]
["rodzina"]
["sprawy wewnętrzne"]
["wyznania religijne oraz mniejszości narodowe i etniczne"]
["zabezpieczenie społeczne"]
["sprawy zagraniczne"]
["zdrowie"]
["żegluga śródlądowa"]
[0]
[]
[]
[]
[]
["rządowy"]
["samorządowy"]

{"sheet":"start","index":4,"n_rows":17,"n_cols":3,"rows_kept":17,"cut":false,"hidden":false,"merged":[]}
[]
[null,"Informacja o realizacji zadań z zakresu audytu wewnętrznego"]
[]
[]
[]
[null,null,"Arkusz został uruchomiony bez obsługi makr!!!"]
[]
[null,null,"W celu uruchomienia makr:"]
[null,null,"1. Sprawdź, czy poziom zabezpieczeń makr ustawiony jest na \"Średnie\""]
[null,null,"2. Zamknij aplikację Excel"]
[null,null,"3. Przy ponownym otwarciu skoroszytu wybierz opcję \"Włącz makra\" "]
[null,null,"Uruchom przycisk INFORMACJA"]
[null,null,"Jeśli informacja się nie wyświetli to oznacza, że arkusz został uruchomiony "]
[null,null,"bez obsługi makr. "]
[null,null,"W celu uruchomienia makr:"]
[null,null,"1. Zamknij aplikację Excel"]
[null,null,"2. Przy ponownym otwarciu skoroszytu wybierz opcję \"Uruchom makra\" "]